[Event "Titled Tuesday Blitz May 10 Late 2022"]
[White "Blackman, Justin"]
[Black "Malka, Samuel"]
[WhiteFideId "11100516"]
[BlackFideId "20643675"]
[WhiteElo "2112"]
[BlackElo "2536"]
[Result "1-0"]
[Round "08"]
[TimeControl "180+1"]
[Date "2022.05.11"]
[WhiteClock "0:00:42"]
[BlackClock "0:00:02"]

1. e4 {[%clk 0:03:00]}  g6 {[%clk 0:02:53]} 2. d4 {[%clk 0:03:00]}  Bg7 {[%clk 0:02:53]} 3. Nc3 {[%clk 0:03:00]}  d6 {[%clk 0:02:53]} 4. Be3 {[%clk 0:03:00]}  a6 {[%clk 0:02:53]} 5. Qd2 {[%clk 0:03:00]}  b5 {[%clk 0:02:53]} 6. f3 {[%clk 0:02:58]}  Bb7 {[%clk 0:02:49]} 7. h4 {[%clk 0:02:55]}  h5 {[%clk 0:02:47]} 8. Nh3 {[%clk 0:02:55]}  Nd7 {[%clk 0:02:46]} 9. Ng5 {[%clk 0:02:54]}  e6 {[%clk 0:02:36]} 10. a4 {[%clk 0:02:47]}  b4 {[%clk 0:02:35]} 11. Ne2 {[%clk 0:02:47]}  a5 {[%clk 0:02:33]} 12. Nf4 {[%clk 0:02:45]}  Nf8 {[%clk 0:02:31]} 13. Bb5+ {[%clk 0:02:43]}  c6 {[%clk 0:02:30]} 14. Bd3 {[%clk 0:02:43]}  Ne7 {[%clk 0:02:30]} 15. c3 {[%clk 0:02:40]}  e5 {[%clk 0:02:14]} 16. Ne2 {[%clk 0:02:34]}  f6 {[%clk 0:02:10]} 17. Nh3 {[%clk 0:02:33]}  bxc3 {[%clk 0:02:03]} 18. bxc3 {[%clk 0:02:34]}  Ba6 {[%clk 0:02:02]} 19. Bxa6 {[%clk 0:02:28]}  Rxa6 {[%clk 0:02:03]} 20. O-O {[%clk 0:02:27]}  Nd7 {[%clk 0:01:57]} 21. f4 {[%clk 0:02:27]}  Bh6 {[%clk 0:01:48]} 22. fxe5 {[%clk 0:02:19]}  Bxe3+ {[%clk 0:01:48]} 23. Qxe3 {[%clk 0:02:20]}  dxe5 {[%clk 0:01:47]} 24. dxe5 {[%clk 0:02:10]}  Nxe5 {[%clk 0:01:48]} 25. Nd4 {[%clk 0:01:54]}  Qd6 {[%clk 0:01:33]} 26. Rab1 {[%clk 0:01:50]}  Ra8 {[%clk 0:01:20]} 27. Rb7 {[%clk 0:01:37]}  Rb8 {[%clk 0:01:03]} 28. Rfb1 {[%clk 0:01:31]}  O-O {[%clk 0:00:58]} 29. Nf4 {[%clk 0:01:22]}  Ng4 {[%clk 0:00:50]} 30. Qf3 {[%clk 0:01:21]}  c5 {[%clk 0:00:44]} 31. Rxb8 {[%clk 0:01:09]}  Rxb8 {[%clk 0:00:45]} 32. Nb5 {[%clk 0:01:10]}  Qe5 {[%clk 0:00:38]} 33. Rd1 {[%clk 0:00:59]}  g5 {[%clk 0:00:30]} 34. Nxh5 {[%clk 0:00:51]}  Qh2+ {[%clk 0:00:13]} 35. Kf1 {[%clk 0:00:51]}  Qxh4 {[%clk 0:00:05]} 36. Qxg4 {[%clk 0:00:51]}  Qh1+ {[%clk 0:00:04]} 37. Ke2 {[%clk 0:00:49]}  Qh2 {[%clk 0:00:02]} 38. Nxf6+ {[%clk 0:00:48]}  Kf7 {[%clk 0:00:03]} 39. Nd6+ {[%clk 0:00:46]}  Kxf6 {[%clk 0:00:02]} 40. Rf1+ {[%clk 0:00:45]}  Ke5 {[%clk 0:00:02]} 41. Nc4# {[%clk 0:00:42]} 1-0


[Site "https://www.chess.com"]

[Event "Titled Tuesday Blitz May 10 Late 2022"]
[White "Burke, Paul"]
[Black "Prieto Aranguren, Alain"]
[WhiteFideId "2605767"]
[BlackFideId "2268906"]
[WhiteElo "1893"]
[BlackElo "2235"]
[Result "0-1"]
[Round "08"]
[TimeControl "180+1"]
[Date "2022.05.11"]
[WhiteClock "0:00:01"]
[BlackClock "0:01:45"]

1. e4 {[%clk 0:03:00]}  c6 {[%clk 0:02:59]} 2. d4 {[%clk 0:02:59]}  d5 {[%clk 0:02:58]} 3. Nc3 {[%clk 0:02:59]}  a6 {[%clk 0:02:56]} 4. f3 {[%clk 0:02:55]}  Qb6 {[%clk 0:02:54]} 5. Rb1 {[%clk 0:02:47]}  dxe4 {[%clk 0:02:54]} 6. fxe4 {[%clk 0:02:46]}  e5 {[%clk 0:02:54]} 7. Nf3 {[%clk 0:02:45]}  exd4 {[%clk 0:02:52]} 8. Nxd4 {[%clk 0:02:39]}  Bc5 {[%clk 0:02:52]} 9. Na4 {[%clk 0:02:38]}  Qa5+ {[%clk 0:02:50]} 10. c3 {[%clk 0:02:25]}  Bd6 {[%clk 0:02:50]} 11. b4 {[%clk 0:01:44]}  Qc7 {[%clk 0:02:48]} 12. Bd3 {[%clk 0:01:27]}  Bxh2 {[%clk 0:02:41]} 13. Qf3 {[%clk 0:01:08]}  Qg3+ {[%clk 0:02:38]} 14. Qxg3 {[%clk 0:01:07]}  Bxg3+ {[%clk 0:02:38]} 15. Kd1 {[%clk 0:01:02]}  Nf6 {[%clk 0:02:36]} 16. Kc2 {[%clk 0:01:00]}  Nbd7 {[%clk 0:02:27]} 17. Nf3 {[%clk 0:00:53]}  Ne5 {[%clk 0:02:24]} 18. Nxe5 {[%clk 0:00:48]}  Bxe5 {[%clk 0:02:24]} 19. Nb6 {[%clk 0:00:48]}  Rb8 {[%clk 0:02:23]} 20. a4 {[%clk 0:00:47]}  Be6 {[%clk 0:02:21]} 21. a5 {[%clk 0:00:40]}  O-O {[%clk 0:02:19]} 22. Ba3 {[%clk 0:00:35]}  Rfd8 {[%clk 0:02:18]} 23. Rbe1 {[%clk 0:00:23]}  Ng4 {[%clk 0:02:17]} 24. Re2 {[%clk 0:00:19]}  Bf6 {[%clk 0:02:04]} 25. Rf1 {[%clk 0:00:12]}  Ne5 {[%clk 0:02:02]} 26. Re3 {[%clk 0:00:02]}  Bg5 {[%clk 0:01:46]} 27. Rg3 {[%clk 0:00:01]}  Bh4 {[%clk 0:01:45]} 0-1


[Site "https://www.chess.com"]

[Event "Titled Tuesday Blitz May 10 Late 2022"]
[White "Can, Melih Kaan"]
[Black "Jacobson, Aaron"]
[WhiteFideId "6317383"]
[BlackFideId "2089912"]
[WhiteElo "2049"]
[BlackElo "2265"]
[Result "1-0"]
[Round "08"]
[TimeControl "180+1"]
[Date "2022.05.11"]
[WhiteClock "0:00:01"]
[BlackClock "0:00:04"]

1. d4 {[%clk 0:02:57]}  Nf6 {[%clk 0:02:56]} 2. c4 {[%clk 0:02:57]}  g6 {[%clk 0:02:56]} 3. Nc3 {[%clk 0:02:58]}  d5 {[%clk 0:02:56]} 4. e3 {[%clk 0:02:55]}  Bg7 {[%clk 0:02:56]} 5. Nf3 {[%clk 0:02:55]}  O-O {[%clk 0:02:45]} 6. Be2 {[%clk 0:02:54]}  dxc4 {[%clk 0:02:26]} 7. Bxc4 {[%clk 0:02:53]}  a6 {[%clk 0:01:59]} 8. a4 {[%clk 0:02:50]}  Nbd7 {[%clk 0:01:58]} 9. O-O {[%clk 0:02:36]}  c5 {[%clk 0:01:55]} 10. b3 {[%clk 0:01:50]}  b6 {[%clk 0:01:35]} 11. d5 {[%clk 0:01:44]}  Ne4 {[%clk 0:01:03]} 12. Nxe4 {[%clk 0:01:43]}  Bxa1 {[%clk 0:01:01]} 13. Qc2 {[%clk 0:01:41]}  Ne5 {[%clk 0:00:47]} 14. Nxe5 {[%clk 0:01:38]}  Bxe5 {[%clk 0:00:48]} 15. f4 {[%clk 0:01:37]}  Bg7 {[%clk 0:00:42]} 16. Ng3 {[%clk 0:01:36]}  Bd7 {[%clk 0:00:27]} 17. e4 {[%clk 0:01:31]}  b5 {[%clk 0:00:27]} 18. Be2 {[%clk 0:01:18]}  Bd4+ {[%clk 0:00:17]} 19. Kh1 {[%clk 0:01:17]}  e6 {[%clk 0:00:18]} 20. d6 {[%clk 0:01:11]}  e5 {[%clk 0:00:17]} 21. fxe5 {[%clk 0:01:11]}  Bxe5 {[%clk 0:00:16]} 22. Qxc5 {[%clk 0:01:11]}  Re8 {[%clk 0:00:16]} 23. Bf4 {[%clk 0:00:22]}  Bxf4 {[%clk 0:00:15]} 24. Rxf4 {[%clk 0:00:23]}  bxa4 {[%clk 0:00:15]} 25. bxa4 {[%clk 0:00:23]}  Rb8 {[%clk 0:00:13]} 26. h3 {[%clk 0:00:20]}  Bxa4 {[%clk 0:00:13]} 27. e5 {[%clk 0:00:19]}  Qg5 {[%clk 0:00:11]} 28. Qf2 {[%clk 0:00:15]}  Qxe5 {[%clk 0:00:07]} 29. Rxa4 {[%clk 0:00:12]}  Qxd6 {[%clk 0:00:05]} 30. Rxa6 {[%clk 0:00:07]}  Qe7 {[%clk 0:00:05]} 31. Ra7 {[%clk 0:00:05]}  Rb7 {[%clk 0:00:04]} 32. Rxb7 {[%clk 0:00:03]}  Qxb7 {[%clk 0:00:04]} 33. Bc4 {[%clk 0:00:02]}  Qc7 {[%clk 0:00:04]} 34. Qa2 {[%clk 0:00:01]} 1-0


[Site "https://www.chess.com"]

[Event "Titled Tuesday Blitz May 10 Late 2022"]
[White "Daggupati, Balaji"]
[Black "Sarana, Alexey"]
[WhiteFideId "2090759"]
[BlackFideId "24133795"]
[WhiteElo "2648"]
[BlackElo "2666"]
[Result "0-1"]
[Round "08"]
[TimeControl "180+1"]
[Date "2022.05.10"]
[WhiteClock "0:01:59"]
[BlackClock "0:01:17"]

1. e4 {[%clk 0:03:00]}  e5 {[%clk 0:02:58]} 2. Nf3 {[%clk 0:03:01]}  Nc6 {[%clk 0:02:59]} 3. Bb5 {[%clk 0:03:01]}  a6 {[%clk 0:02:58]} 4. Ba4 {[%clk 0:03:01]}  Nf6 {[%clk 0:02:59]} 5. d4 {[%clk 0:03:02]}  exd4 {[%clk 0:02:58]} 6. O-O {[%clk 0:03:02]}  b5 {[%clk 0:02:42]} 7. Bb3 {[%clk 0:03:02]}  Nxe4 {[%clk 0:02:22]} 8. Re1 {[%clk 0:03:02]}  d5 {[%clk 0:02:23]} 9. Nc3 {[%clk 0:03:02]}  Be6 {[%clk 0:02:01]} 10. Nxe4 {[%clk 0:03:02]}  dxe4 {[%clk 0:02:01]} 11. Rxe4 {[%clk 0:03:03]}  Be7 {[%clk 0:01:59]} 12. Bxe6 {[%clk 0:03:04]}  fxe6 {[%clk 0:02:00]} 13. Rxe6 {[%clk 0:02:55]}  Qd5 {[%clk 0:01:57]} 14. Qe2 {[%clk 0:02:48]}  Kf7 {[%clk 0:01:30]} 15. Rxc6 {[%clk 0:02:43]}  Bd6 {[%clk 0:01:30]} 16. Ng5+ {[%clk 0:02:34]}  Kf8 {[%clk 0:01:18]} 17. Qe6 {[%clk 0:01:59]}  Re8 {[%clk 0:01:17]} 0-1


[Site "https://www.chess.com"]

[Event "Titled Tuesday Blitz May 10 Late 2022"]
[White "Wagner, Dinara"]
[Black "Wachinger, Guenther"]
[WhiteFideId "24157570"]
[BlackFideId "4604261"]
[WhiteElo "2216"]
[BlackElo "2212"]
[Result "1-0"]
[Round "08"]
[TimeControl "180+1"]
[Date "2022.05.11"]
[WhiteClock "0:00:15"]
[BlackClock "0:00:01"]

1. d4 {[%clk 0:02:59]}  d5 {[%clk 0:02:59]} 2. Nf3 {[%clk 0:02:57]}  e6 {[%clk 0:02:59]} 3. c4 {[%clk 0:02:57]}  c6 {[%clk 0:02:59]} 4. g3 {[%clk 0:02:58]}  Nf6 {[%clk 0:02:59]} 5. Bg2 {[%clk 0:02:58]}  Be7 {[%clk 0:03:00]} 6. O-O {[%clk 0:02:58]}  O-O {[%clk 0:03:00]} 7. Qc2 {[%clk 0:02:57]}  b6 {[%clk 0:03:01]} 8. Rd1 {[%clk 0:02:56]}  Bb7 {[%clk 0:03:01]} 9. b3 {[%clk 0:02:55]}  Re8 {[%clk 0:02:58]} 10. Nc3 {[%clk 0:02:55]}  a5 {[%clk 0:02:53]} 11. e4 {[%clk 0:02:55]}  dxc4 {[%clk 0:02:53]} 12. bxc4 {[%clk 0:02:55]}  Qc8 {[%clk 0:02:28]} 13. e5 {[%clk 0:02:54]}  Nfd7 {[%clk 0:02:28]} 14. Ne4 {[%clk 0:02:52]}  Na6 {[%clk 0:02:24]} 15. Neg5 {[%clk 0:02:52]}  g6 {[%clk 0:02:24]} 16. h4 {[%clk 0:02:51]}  h5 {[%clk 0:02:12]} 17. Nxe6 {[%clk 0:02:45]}  Bf8 {[%clk 0:02:03]} 18. Nxf8 {[%clk 0:02:43]}  Nxf8 {[%clk 0:02:04]} 19. Bg5 {[%clk 0:02:39]}  b5 {[%clk 0:01:58]} 20. c5 {[%clk 0:02:37]}  Nb4 {[%clk 0:01:57]} 21. Qd2 {[%clk 0:02:37]}  Nd5 {[%clk 0:01:55]} 22. Bf6 {[%clk 0:02:24]}  Nxf6 {[%clk 0:01:32]} 23. exf6 {[%clk 0:02:23]}  Qe6 {[%clk 0:01:33]} 24. Qf4 {[%clk 0:02:15]}  Rad8 {[%clk 0:01:19]} 25. Ne5 {[%clk 0:02:00]}  Nh7 {[%clk 0:01:10]} 26. Re1 {[%clk 0:01:24]}  Nxf6 {[%clk 0:01:05]} 27. Nxc6 {[%clk 0:01:01]}  Qxe1+ {[%clk 0:01:04]} 28. Rxe1 {[%clk 0:01:00]}  Rxe1+ {[%clk 0:01:04]} 29. Kh2 {[%clk 0:01:01]}  Ng4+ {[%clk 0:01:04]} 30. Kh3 {[%clk 0:01:00]}  Bc8 {[%clk 0:00:53]} 31. Bf3 {[%clk 0:00:26]}  Nxf2+ {[%clk 0:00:10]} 32. Kg2 {[%clk 0:00:26]}  Rde8 {[%clk 0:00:06]} 33. Kxf2 {[%clk 0:00:25]}  Bh3 {[%clk 0:00:06]} 34. Ne5 {[%clk 0:00:17]}  f6 {[%clk 0:00:06]} 35. Qxf6 {[%clk 0:00:15]}  Rf1+ {[%clk 0:00:02]} 36. Ke2 {[%clk 0:00:15]}  Rxe5+ {[%clk 0:00:01]} 37. dxe5 {[%clk 0:00:15]} 1-0


[Site "https://www.chess.com"]

[Event "Titled Tuesday Blitz May 10 Late 2022"]
[White "Dreev, Aleksey"]
[Black "Bluebaum, Matthias"]
[WhiteFideId "4100107"]
[BlackFideId "24651516"]
[WhiteElo "2625"]
[BlackElo "2556"]
[Result "1-0"]
[Round "08"]
[TimeControl "180+1"]
[Date "2022.05.10"]
[WhiteClock "0:00:10"]
[BlackClock "0:00:02"]

1. d4 {[%clk 0:03:00]}  Nf6 {[%clk 0:02:59]} 2. Nf3 {[%clk 0:03:00]}  d5 {[%clk 0:03:00]} 3. c4 {[%clk 0:03:00]}  e6 {[%clk 0:03:00]} 4. Bg5 {[%clk 0:02:58]}  Bb4+ {[%clk 0:02:59]} 5. Nbd2 {[%clk 0:02:57]}  h6 {[%clk 0:02:58]} 6. Bxf6 {[%clk 0:02:53]}  Qxf6 {[%clk 0:02:59]} 7. a3 {[%clk 0:02:48]}  Be7 {[%clk 0:02:57]} 8. g3 {[%clk 0:02:42]}  O-O {[%clk 0:02:56]} 9. Bg2 {[%clk 0:02:41]}  Rd8 {[%clk 0:02:57]} 10. Qc2 {[%clk 0:02:35]}  Nc6 {[%clk 0:02:39]} 11. e3 {[%clk 0:02:30]}  Bd7 {[%clk 0:02:39]} 12. O-O {[%clk 0:02:26]}  Rac8 {[%clk 0:02:39]} 13. Rac1 {[%clk 0:02:25]}  Be8 {[%clk 0:02:39]} 14. Rfd1 {[%clk 0:02:21]}  Bf8 {[%clk 0:02:35]} 15. Qc3 {[%clk 0:01:58]}  Ne7 {[%clk 0:02:09]} 16. b4 {[%clk 0:01:55]}  c6 {[%clk 0:02:07]} 17. Ne5 {[%clk 0:01:47]}  Ng6 {[%clk 0:01:52]} 18. Nd3 {[%clk 0:01:47]}  Qe7 {[%clk 0:01:27]} 19. h4 {[%clk 0:01:39]}  f5 {[%clk 0:01:22]} 20. Nf3 {[%clk 0:01:37]}  Qf6 {[%clk 0:01:16]} 21. Qb3 {[%clk 0:01:35]}  Ne7 {[%clk 0:01:14]} 22. Nfe5 {[%clk 0:01:12]}  g5 {[%clk 0:01:14]} 23. hxg5 {[%clk 0:01:09]}  hxg5 {[%clk 0:01:15]} 24. Nc5 {[%clk 0:01:10]}  Rc7 {[%clk 0:01:09]} 25. cxd5 {[%clk 0:01:04]}  exd5 {[%clk 0:01:07]} 26. b5 {[%clk 0:01:02]}  Ng6 {[%clk 0:01:07]} 27. f4 {[%clk 0:01:00]}  gxf4 {[%clk 0:01:05]} 28. exf4 {[%clk 0:01:00]}  Rg7 {[%clk 0:01:00]} 29. bxc6 {[%clk 0:00:59]}  bxc6 {[%clk 0:01:01]} 30. Re1 {[%clk 0:00:54]}  Nxe5 {[%clk 0:00:46]} 31. Rxe5 {[%clk 0:00:43]}  Bd6 {[%clk 0:00:33]} 32. Re3 {[%clk 0:00:42]}  Rb8 {[%clk 0:00:25]} 33. Qd3 {[%clk 0:00:41]}  Bxc5 {[%clk 0:00:14]} 34. Rxc5 {[%clk 0:00:36]}  Bd7 {[%clk 0:00:14]} 35. Rc1 {[%clk 0:00:31]}  Rb2 {[%clk 0:00:12]} 36. Rce1 {[%clk 0:00:30]}  Kh7 {[%clk 0:00:10]} 37. R1e2 {[%clk 0:00:29]}  Rxe2 {[%clk 0:00:09]} 38. Rxe2 {[%clk 0:00:30]}  Qd6 {[%clk 0:00:08]} 39. Re5 {[%clk 0:00:28]}  Qg6 {[%clk 0:00:07]} 40. Kf2 {[%clk 0:00:28]}  Qf6 {[%clk 0:00:04]} 41. Bh3 {[%clk 0:00:28]}  Rf7 {[%clk 0:00:05]} 42. Qe3 {[%clk 0:00:27]}  Kg7 {[%clk 0:00:05]} 43. Bf1 {[%clk 0:00:20]}  Qd6 {[%clk 0:00:05]} 44. Be2 {[%clk 0:00:19]}  a5 {[%clk 0:00:05]} 45. Bh5 {[%clk 0:00:19]}  Rf6 {[%clk 0:00:02]} 46. Re7+ {[%clk 0:00:17]}  Kh6 {[%clk 0:00:03]} 47. Bf7 {[%clk 0:00:14]}  a4 {[%clk 0:00:02]} 48. Qe1 {[%clk 0:00:10]} 1-0


[Site "https://www.chess.com"]

[Event "Titled Tuesday Blitz May 10 Late 2022"]
[White "Dubov, Daniil"]
[Black "Bazeev, German"]
[WhiteFideId "24126055"]
[BlackFideId "24119350"]
[WhiteElo "2791"]
[BlackElo "2493"]
[Result "1-0"]
[Round "08"]
[TimeControl "180+1"]
[Date "2022.05.10"]
[WhiteClock "0:00:05"]
[BlackClock "0:00:02"]

1. e4 {[%clk 0:03:00]}  c5 {[%clk 0:01:32]} 2. Nf3 {[%clk 0:02:56]}  Nf6 {[%clk 0:01:31]} 3. Nc3 {[%clk 0:02:39]}  Nc6 {[%clk 0:01:25]} 4. Bb5 {[%clk 0:02:38]}  e5 {[%clk 0:01:22]} 5. d3 {[%clk 0:02:27]}  d6 {[%clk 0:01:19]} 6. h3 {[%clk 0:01:31]}  h6 {[%clk 0:01:18]} 7. Bc4 {[%clk 0:01:31]}  Be7 {[%clk 0:01:17]} 8. a3 {[%clk 0:01:29]}  Be6 {[%clk 0:01:12]} 9. Nd5 {[%clk 0:01:28]}  Qd7 {[%clk 0:01:10]} 10. O-O {[%clk 0:01:27]}  O-O {[%clk 0:01:07]} 11. Bd2 {[%clk 0:01:22]}  Bd8 {[%clk 0:01:05]} 12. b4 {[%clk 0:01:17]}  Bxd5 {[%clk 0:00:55]} 13. exd5 {[%clk 0:01:16]}  Nd4 {[%clk 0:00:55]} 14. bxc5 {[%clk 0:01:09]}  Nxf3+ {[%clk 0:00:54]} 15. Qxf3 {[%clk 0:01:10]}  dxc5 {[%clk 0:00:55]} 16. Qg3 {[%clk 0:01:08]}  Nxd5 {[%clk 0:00:44]} 17. Bxh6 {[%clk 0:00:53]}  Bf6 {[%clk 0:00:43]} 18. Rae1 {[%clk 0:00:39]}  b5 {[%clk 0:00:34]} 19. Bb3 {[%clk 0:00:34]}  Rfe8 {[%clk 0:00:32]} 20. Re4 {[%clk 0:00:26]}  Nf4 {[%clk 0:00:31]} 21. Bxf4 {[%clk 0:00:23]}  exf4 {[%clk 0:00:31]} 22. Qxf4 {[%clk 0:00:23]}  Rxe4 {[%clk 0:00:31]} 23. Qxe4 {[%clk 0:00:24]}  Re8 {[%clk 0:00:32]} 24. Qf3 {[%clk 0:00:23]}  a5 {[%clk 0:00:29]} 25. Rb1 {[%clk 0:00:17]}  Rb8 {[%clk 0:00:25]} 26. a4 {[%clk 0:00:16]}  Qd4 {[%clk 0:00:17]} 27. axb5 {[%clk 0:00:14]}  a4 {[%clk 0:00:17]} 28. Bc4 {[%clk 0:00:14]}  a3 {[%clk 0:00:17]} 29. Qc6 {[%clk 0:00:10]}  Qf4 {[%clk 0:00:13]} 30. b6 {[%clk 0:00:10]}  Bd4 {[%clk 0:00:13]} 31. Rf1 {[%clk 0:00:10]}  Qf6 {[%clk 0:00:12]} 32. Qa4 {[%clk 0:00:07]}  Bb2 {[%clk 0:00:10]} 33. b7 {[%clk 0:00:06]}  Qe7 {[%clk 0:00:09]} 34. Bd5 {[%clk 0:00:05]}  g6 {[%clk 0:00:07]} 35. Bf3 {[%clk 0:00:05]}  Kg7 {[%clk 0:00:08]} 36. Qa7 {[%clk 0:00:05]}  Qc7 {[%clk 0:00:07]} 37. g3 {[%clk 0:00:05]}  Qd6 {[%clk 0:00:05]} 38. Kg2 {[%clk 0:00:05]}  Qc7 {[%clk 0:00:06]} 39. Re1 {[%clk 0:00:05]}  Rd8 {[%clk 0:00:06]} 40. Re4 {[%clk 0:00:05]}  Qb8 {[%clk 0:00:05]} 41. Ra4 {[%clk 0:00:05]}  c4 {[%clk 0:00:02]} 42. Qxb8 {[%clk 0:00:04]}  Rxb8 {[%clk 0:00:02]} 43. dxc4 {[%clk 0:00:05]} 1-0


[Site "https://www.chess.com"]

[Event "Titled Tuesday Blitz May 10 Late 2022"]
[White "Hnydiuk, Aleksander"]
[Black "Shimanov, Aleksandr"]
[WhiteFideId "1109057"]
[BlackFideId "4198603"]
[WhiteElo "2374"]
[BlackElo "2605"]
[Result "0-1"]
[Round "08"]
[TimeControl "180+1"]
[Date "2022.05.10"]
[WhiteClock "0:00:48"]
[BlackClock "0:01:10"]

1. g3 {[%clk 0:03:00]}  d5 {[%clk 0:02:55]} 2. Nf3 {[%clk 0:03:00]}  b6 {[%clk 0:02:51]} 3. Bg2 {[%clk 0:02:59]}  Bb7 {[%clk 0:02:52]} 4. O-O {[%clk 0:02:58]}  e6 {[%clk 0:02:52]} 5. c4 {[%clk 0:02:57]}  dxc4 {[%clk 0:02:50]} 6. Na3 {[%clk 0:02:55]}  Nd7 {[%clk 0:02:45]} 7. Nxc4 {[%clk 0:02:54]}  Ngf6 {[%clk 0:02:45]} 8. b3 {[%clk 0:02:53]}  Be7 {[%clk 0:02:45]} 9. Bb2 {[%clk 0:02:53]}  O-O {[%clk 0:02:46]} 10. Qc2 {[%clk 0:02:53]}  c5 {[%clk 0:02:32]} 11. Rac1 {[%clk 0:02:52]}  Rc8 {[%clk 0:02:31]} 12. Qb1 {[%clk 0:02:52]}  b5 {[%clk 0:02:28]} 13. Ne3 {[%clk 0:02:41]}  Qb6 {[%clk 0:02:26]} 14. Rfd1 {[%clk 0:02:40]}  Qa6 {[%clk 0:02:05]} 15. d3 {[%clk 0:02:39]}  Rfd8 {[%clk 0:02:04]} 16. Qa1 {[%clk 0:02:37]}  h6 {[%clk 0:02:03]} 17. h3 {[%clk 0:02:35]}  Bf8 {[%clk 0:01:54]} 18. Rc2 {[%clk 0:02:26]}  Nd5 {[%clk 0:01:48]} 19. Nxd5 {[%clk 0:02:16]}  exd5 {[%clk 0:01:49]} 20. Rdc1 {[%clk 0:02:09]}  Re8 {[%clk 0:01:41]} 21. e3 {[%clk 0:02:01]}  b4 {[%clk 0:01:30]} 22. d4 {[%clk 0:01:46]}  c4 {[%clk 0:01:29]} 23. Bf1 {[%clk 0:01:45]}  Qb6 {[%clk 0:01:18]} 24. Qb1 {[%clk 0:00:52]}  c3 {[%clk 0:01:17]} 25. Ba1 {[%clk 0:00:52]}  a5 {[%clk 0:01:14]} 26. a3 {[%clk 0:00:52]}  Bd6 {[%clk 0:01:11]} 27. Ne1 {[%clk 0:00:49]}  Nf6 {[%clk 0:01:10]} 28. Nd3 {[%clk 0:00:48]}  Ne4 {[%clk 0:01:10]} 0-1


[Site "https://www.chess.com"]

[Event "Titled Tuesday Blitz May 10 Late 2022"]
[White "Hoffmann, Asa"]
[Black "Bongo Akanga Ndjila, Barthelemy"]
[WhiteFideId "2001470"]
[BlackFideId "10609431"]
[WhiteElo "2117"]
[BlackElo "1768"]
[Result "1-0"]
[Round "08"]
[TimeControl "180+1"]
[Date "2022.05.11"]
[WhiteClock "0:00:47"]
[BlackClock "0:00:01"]

1. d4 {[%clk 0:02:59]}  Nf6 {[%clk 0:02:57]} 2. Bg5 {[%clk 0:02:56]}  e6 {[%clk 0:02:57]} 3. Nd2 {[%clk 0:02:55]}  d5 {[%clk 0:02:57]} 4. e3 {[%clk 0:02:55]}  h6 {[%clk 0:02:57]} 5. Bh4 {[%clk 0:02:55]}  Be7 {[%clk 0:02:56]} 6. f4 {[%clk 0:02:54]}  O-O {[%clk 0:02:53]} 7. Bd3 {[%clk 0:02:54]}  b6 {[%clk 0:02:52]} 8. Ngf3 {[%clk 0:02:53]}  Bb7 {[%clk 0:02:52]} 9. O-O {[%clk 0:02:53]}  Nbd7 {[%clk 0:02:51]} 10. Ne5 {[%clk 0:02:53]}  c5 {[%clk 0:02:51]} 11. c3 {[%clk 0:02:52]}  Rc8 {[%clk 0:02:49]} 12. Qf3 {[%clk 0:02:52]}  a6 {[%clk 0:02:32]} 13. a4 {[%clk 0:02:52]}  Re8 {[%clk 0:02:26]} 14. f5 {[%clk 0:02:49]}  Nf8 {[%clk 0:02:12]} 15. Rae1 {[%clk 0:02:25]}  Qd6 {[%clk 0:02:04]} 16. Bg3 {[%clk 0:02:24]}  Qd8 {[%clk 0:02:03]} 17. Re2 {[%clk 0:02:09]}  c4 {[%clk 0:01:42]} 18. Bc2 {[%clk 0:02:08]}  b5 {[%clk 0:01:42]} 19. axb5 {[%clk 0:02:07]}  axb5 {[%clk 0:01:42]} 20. e4 {[%clk 0:02:06]}  dxe4 {[%clk 0:01:40]} 21. Nxe4 {[%clk 0:02:06]}  b4 {[%clk 0:01:33]} 22. fxe6 {[%clk 0:02:00]}  Nxe6 {[%clk 0:01:28]} 23. Qf5 {[%clk 0:01:40]}  Rf8 {[%clk 0:01:01]} 24. Nxf7 {[%clk 0:01:36]}  Nxd4 {[%clk 0:00:53]} 25. Nxh6+ {[%clk 0:01:28]}  Kh8 {[%clk 0:00:37]} 26. cxd4 {[%clk 0:01:21]}  Qxd4+ {[%clk 0:00:32]} 27. Bf2 {[%clk 0:01:21]}  Bxe4 {[%clk 0:00:27]} 28. Bxd4 {[%clk 0:01:20]}  Bxf5 {[%clk 0:00:25]} 29. Nxf5 {[%clk 0:01:20]}  Bc5 {[%clk 0:00:22]} 30. Bxc5 {[%clk 0:01:17]}  Rxc5 {[%clk 0:00:22]} 31. Re7 {[%clk 0:01:13]}  Nh5 {[%clk 0:00:17]} 32. Ng3 {[%clk 0:01:10]}  Nf4 {[%clk 0:00:15]} 33. Re4 {[%clk 0:01:02]}  Ng6 {[%clk 0:00:11]} 34. Rxf8+ {[%clk 0:01:00]}  Nxf8 {[%clk 0:00:12]} 35. Re8 {[%clk 0:01:00]}  Kg8 {[%clk 0:00:12]} 36. Ne4 {[%clk 0:00:59]}  Rf5 {[%clk 0:00:06]} 37. g4 {[%clk 0:00:57]}  Rf4 {[%clk 0:00:05]} 38. h3 {[%clk 0:00:57]}  b3 {[%clk 0:00:04]} 39. Bd1 {[%clk 0:00:56]}  Kf7 {[%clk 0:00:03]} 40. Re5 {[%clk 0:00:53]}  Nd7 {[%clk 0:00:02]} 41. Rd5 {[%clk 0:00:49]}  Ke7 {[%clk 0:00:01]} 42. Nf2 {[%clk 0:00:47]} 1-0


[Site "https://www.chess.com"]

[Event "Titled Tuesday Blitz May 10 Late 2022"]
[White "Joubert, Dantelle"]
[Black "Stanisz, Patryk"]
[WhiteFideId "14310813"]
[BlackFideId "1123106"]
[WhiteElo "1507"]
[BlackElo "1833"]
[Result "0-1"]
[Round "08"]
[TimeControl "180+1"]
[Date "2022.05.11"]
[WhiteClock "0:00:03"]
[BlackClock "0:01:13"]

1. Nf3 {[%clk 0:03:00]}  Nf6 {[%clk 0:02:58]} 2. c4 {[%clk 0:02:59]}  e6 {[%clk 0:02:57]} 3. g3 {[%clk 0:02:58]}  c5 {[%clk 0:02:57]} 4. Bg2 {[%clk 0:02:55]}  Nc6 {[%clk 0:02:57]} 5. O-O {[%clk 0:02:55]}  d5 {[%clk 0:02:48]} 6. cxd5 {[%clk 0:02:51]}  exd5 {[%clk 0:02:49]} 7. d4 {[%clk 0:02:51]}  cxd4 {[%clk 0:02:45]} 8. Nxd4 {[%clk 0:02:49]}  Be7 {[%clk 0:02:46]} 9. Nc3 {[%clk 0:02:47]}  O-O {[%clk 0:02:46]} 10. b3 {[%clk 0:02:38]}  Bg4 {[%clk 0:02:43]} 11. Bb2 {[%clk 0:02:34]}  Rc8 {[%clk 0:02:42]} 12. Re1 {[%clk 0:02:18]}  Re8 {[%clk 0:02:37]} 13. a3 {[%clk 0:01:54]}  Na5 {[%clk 0:02:28]} 14. h3 {[%clk 0:01:38]}  Bh5 {[%clk 0:02:27]} 15. Nf5 {[%clk 0:01:35]}  Bg6 {[%clk 0:02:09]} 16. Nxe7+ {[%clk 0:01:27]}  Rxe7 {[%clk 0:02:09]} 17. Nxd5 {[%clk 0:01:16]}  Nxd5 {[%clk 0:02:05]} 18. Qxd5 {[%clk 0:01:13]}  Qxd5 {[%clk 0:01:55]} 19. Bxd5 {[%clk 0:01:12]}  Rc2 {[%clk 0:01:56]} 20. Bd4 {[%clk 0:00:40]}  Rexe2 {[%clk 0:01:51]} 21. Rxe2 {[%clk 0:00:39]}  Rxe2 {[%clk 0:01:52]} 22. Bxa7 {[%clk 0:00:37]}  Rd2 {[%clk 0:01:47]} 23. Rc1 {[%clk 0:00:25]}  h5 {[%clk 0:01:45]} 24. Bc4 {[%clk 0:00:17]}  Be4 {[%clk 0:01:25]} 25. Be3 {[%clk 0:00:15]}  Ra2 {[%clk 0:01:22]} 26. a4 {[%clk 0:00:14]}  Nxc4 {[%clk 0:01:18]} 27. Rxc4 {[%clk 0:00:10]}  Ra1+ {[%clk 0:01:18]} 28. Rc1 {[%clk 0:00:09]}  Ra3 {[%clk 0:01:17]} 29. Rc3 {[%clk 0:00:07]}  Bd5 {[%clk 0:01:14]} 30. Bc5 {[%clk 0:00:05]}  Ra1+ {[%clk 0:01:12]} 31. Kh2 {[%clk 0:00:03]}  Rh1# {[%clk 0:01:13]} 0-1


[Site "https://www.chess.com"]